[Event "FIDE U16 Olympiad_boards_1-80"]
[Site "Eindhoven, Netherlands"]
[Date "2023.08.14"]
[Round "2.1"]
[White "Ansat, Aldiyar"]
[Black "Aswath, S"]
[Result "1/2-1/2"]
[TimeControl "2700+10"]
[WhiteElo "2370"]
[BlackElo "2229"]

1. Nf3 {[%clk 00:45:16]} {[%emt 00:00:04]} d5 {[%clk 00:45:16]} {[%emt
00:00:04]} 2. g3 {[%clk 00:45:23]} {[%emt 00:00:03]} Nf6 {[%clk 00:45:12]}
{[%emt 00:00:15]} 3. Bg2 {[%clk 00:45:32]} {[%emt 00:00:01]} c5 {[%clk
00:45:12]} {[%emt 00:00:09]} 4. O-O {[%clk 00:45:40]} {[%emt 00:00:02]} h6
{[%clk 00:45:04]} {[%emt 00:00:18]} 5. c4 {[%clk 00:45:23]} {[%emt 00:00:27]}
d4 {[%clk 00:45:11]} {[%emt 00:00:03]} 6. b4 {[%clk 00:40:45]} {[%emt
00:04:49]} cxb4 {[%clk 00:45:18]} {[%emt 00:00:03]} 7. a3 {[%clk 00:40:49]}
{[%emt 00:00:06]} bxa3 {[%clk 00:45:19]} {[%emt 00:00:09]} 8. Bxa3 {[%clk
00:40:28]} {[%emt 00:00:31]} Nc6 {[%clk 00:45:19]} {[%emt 00:00:10]} 9. d3
{[%clk 00:34:19]} {[%emt 00:06:19]} e5 {[%clk 00:44:46]} {[%emt 00:00:42]} 10.
Qa4 {[%clk 00:31:04]} {[%emt 00:03:26]} Bd7 {[%clk 00:43:09]} {[%emt 00:01:47]}
11. Bxf8 {[%clk 00:31:00]} {[%emt 00:00:14]} Kxf8 {[%clk 00:43:16]} {[%emt
00:00:03]} 12. Nbd2 {[%clk 00:30:14]} {[%emt 00:00:57]} g6 {[%clk 00:42:19]}
{[%emt 00:01:06]} 13. Nb3 {[%clk 00:30:12]} {[%emt 00:00:12]} Qe7 {[%clk
00:41:00]} {[%emt 00:01:29]} 14. Qa3 {[%clk 00:27:33]} {[%emt 00:02:49]} Ng8
{[%clk 00:22:09]} {[%emt 00:19:00]} 15. Nc5 {[%clk 00:24:12]} {[%emt 00:03:33]}
Bc8 {[%clk 00:21:56]} {[%emt 00:00:23]} 16. Rfb1 {[%clk 00:23:05]} {[%emt
00:01:16]} Kg7 {[%clk 00:20:09]} {[%emt 00:01:57]} 17. Nxb7 {[%clk 00:22:22]}
{[%emt 00:00:54]} Qxa3 {[%clk 00:20:16]} {[%emt 00:00:03]} 18. Rxa3 {[%clk
00:22:30]} {[%emt 00:00:02]} Rb8 {[%clk 00:20:23]} {[%emt 00:00:03]} 19. Rab3
{[%clk 00:22:02]} {[%emt 00:00:39]} Nge7 {[%clk 00:19:16]} {[%emt 00:01:16]} 20.
Nd6 {[%clk 00:18:25]} {[%emt 00:03:47]} Rxb3 {[%clk 00:15:20]} {[%emt
00:04:07]} 21. Rxb3 {[%clk 00:18:34]} {[%emt 00:00:01]} Bg4 {[%clk 00:15:26]}
{[%emt 00:00:03]} 22. Rb7 {[%clk 00:18:09]} {[%emt 00:00:35]} Rb8 {[%clk
00:12:34]} {[%emt 00:03:02]} 23. Rxb8 {[%clk 00:18:05]} {[%emt 00:00:14]} Nxb8
{[%clk 00:12:42]} {[%emt 00:00:02]} 24. Nxe5 {[%clk 00:10:05]} {[%emt
00:08:10]} Bxe2 {[%clk 00:12:43]} {[%emt 00:00:08]} 25. f4 {[%clk 00:09:44]}
{[%emt 00:00:32]} f6 {[%clk 00:09:18]} {[%emt 00:03:35]} 26. Ne8+ {[%clk
00:09:48]} {[%emt 00:00:06]} Kh8 {[%clk 00:09:27]} {[%emt 00:00:02]} 27. Nxf6
{[%clk 00:09:44]} {[%emt 00:00:14]} a5 {[%clk 00:09:35]} {[%emt 00:00:01]} 28.
c5 {[%clk 00:04:50]} {[%emt 00:05:05]} a4 {[%clk 00:08:54]} {[%emt 00:00:51]}
29. Nc4 {[%clk 00:02:11]} {[%emt 00:02:49]} Bxd3 {[%clk 00:08:57]} {[%emt
00:00:07]} 30. Na3 {[%clk 00:02:21]} Kg7 {[%clk 00:07:21]} {[%emt 00:01:45]} 31.
Ng4 {[%emt 00:00:06]} Na6 {[%clk 00:06:31]} {[%emt 00:00:58]} 32. c6 {[%clk
00:02:30]} {[%emt 00:00:06]} Nb4 {[%clk 00:06:28]} {[%emt 00:00:13]} 33. Ne5
{[%clk 00:02:03]} {[%emt 00:00:37]} Ba6 {[%clk 00:03:31]} {[%emt 00:03:07]} 34.
Kf2 {[%clk 00:02:11]} {[%emt 00:00:02]} Kf6 {[%clk 00:03:00]} {[%emt 00:00:40]}
35. Be4 {[%clk 00:00:31]} {[%emt 00:01:50]} g5 {[%clk 00:02:12]} {[%emt
00:00:58]} 36. Nd7+ {[%clk 00:00:22]} {[%emt 00:00:20]} Ke6 {[%clk 00:02:17]}
{[%emt 00:00:04]} 37. f5+ {[%clk 00:00:14]} {[%emt 00:00:18]} Nxf5 {[%clk
00:01:47]} {[%emt 00:00:40]} 38. Nc5+ {[%clk 00:00:22]} {[%emt 00:00:03]} Ke5
{[%clk 00:01:29]} {[%emt 00:00:27]} 39. c7 {[%clk 00:00:13]} {[%emt 00:00:19]}
Nd6 {[%clk 00:01:37]} {[%emt 00:00:02]} 40. Bb7 {[%clk 00:00:12]} {[%emt
00:00:11]} Bxb7 {[%clk 00:01:14]} {[%emt 00:00:32]} 41. Nxb7 {[%clk 00:00:22]}
Nc8 {[%clk 00:01:19]} {[%emt 00:00:05]} 42. Nc5 {[%clk 00:00:15]} {[%emt
00:00:17]} Nd5 {[%clk 00:00:44]} {[%emt 00:00:45]} 43. Nc4+ {[%clk 00:00:21]}
{[%emt 00:00:04]} Kf5 {[%clk 00:00:47]} {[%emt 00:00:07]} 44. Nxa4 {[%clk
00:00:12]} {[%emt 00:00:19]} Nxc7 {[%clk 00:00:51]} {[%emt 00:00:06]} 45. Nc5
{[%clk 00:00:22]} Ne6 {[%clk 00:00:25]} {[%emt 00:00:35]} 46. Nd7 {[%clk
00:00:31]} Ke4 {[%clk 00:00:16]} {[%emt 00:00:19]} 47. Ke2 {[%clk 00:00:41]}
Kd5 {[%clk 00:00:21]} {[%emt 00:00:05]} 48. Kd3 {[%clk 00:00:23]} {[%emt
00:00:28]} Nd6 {[%clk 00:00:11]} {[%emt 00:00:35]} 49. Nf6+ {[%clk 00:00:22]}
{[%emt 00:01:02]} Kc5 {[%clk 00:00:19]} {[%emt 00:00:02]} 50. Ne5 {[%clk
00:00:13]} {[%emt 00:00:19]} Nf5 {[%clk 00:00:14]} {[%emt 00:00:14]} 51. Ke4
{[%clk 00:00:17]} {[%emt 00:00:05]} Nd6+ {[%clk 00:00:19]} {[%emt 00:00:06]} 52.
Kd3 {[%clk 00:00:27]} Nf5 {[%clk 00:00:22]} {[%emt 00:00:06]} 53. Ke4 {[%clk
00:00:36]} {[%emt 00:00:01]} Nd6+ {[%clk 00:00:28]} {[%emt 00:00:05]} 1/2-1/2

[Event "FIDE U16 Olympiad_boards_1-80"]
[Site "Eindhoven, Netherlands"]
[Date "2023.08.14"]
[Round "2.2"]
[White "Adireddy, Arjun"]
[Black "Sapenov, Daniyal"]
[Result "0-1"]
[TimeControl "2700+10"]
[WhiteElo "1987"]
[BlackElo "2268"]

1. e4 {[%clk 00:45:17]} {[%emt 00:00:01]} c5 {[%clk 00:45:08]} {[%emt
00:00:12]} 2. Nf3 {[%clk 00:45:23]} {[%emt 00:00:05]} d6 {[%clk 00:45:17]}
{[%emt 00:00:02]} 3. d4 {[%clk 00:45:32]} {[%emt 00:00:02]} cxd4 {[%clk
00:45:25]} {[%emt 00:00:02]} 4. Nxd4 {[%clk 00:45:40]} {[%emt 00:00:02]} Nf6
{[%clk 00:45:33]} {[%emt 00:00:02]} 5. Nc3 {[%clk 00:45:47]} {[%emt 00:00:02]}
a6 {[%clk 00:45:42]} {[%emt 00:00:01]} 6. h3 {[%clk 00:45:30]} {[%emt
00:00:28]} e6 {[%clk 00:45:43]} {[%emt 00:00:08]} 7. g4 {[%clk 00:45:34]}
{[%emt 00:00:07]} h6 {[%clk 00:45:51]} {[%emt 00:00:02]} 8. Bg2 {[%clk
00:45:11]} {[%emt 00:00:33]} Be7 {[%clk 00:45:55]} {[%emt 00:00:06]} 9. Be3
{[%clk 00:44:48]} {[%emt 00:00:33]} Nc6 {[%clk 00:44:30]} {[%emt 00:01:36]} 10.
Qe2 {[%clk 00:41:43]} {[%emt 00:03:15]} Nxd4 {[%clk 00:40:00]} {[%emt
00:04:40]} 11. Bxd4 {[%clk 00:41:50]} {[%emt 00:00:03]} e5 {[%clk 00:40:08]}
{[%emt 00:00:02]} 12. Be3 {[%clk 00:41:58]} {[%emt 00:00:02]} Be6 {[%clk
00:40:13]} {[%emt 00:00:05]} 13. O-O-O {[%clk 00:39:34]} {[%emt 00:02:34]} Rc8
{[%clk 00:38:21]} {[%emt 00:02:01]} 14. Nd5 {[%clk 00:37:48]} {[%emt 00:01:56]}
Nxd5 {[%clk 00:37:09]} {[%emt 00:01:23]} 15. exd5 {[%clk 00:37:55]} {[%emt
00:00:03]} Bd7 {[%clk 00:37:17]} {[%emt 00:00:01]} 16. f4 {[%clk 00:31:12]}
{[%emt 00:06:54]} exf4 {[%clk 00:36:28]} {[%emt 00:00:59]} 17. Bxf4 {[%clk
00:31:15]} {[%emt 00:00:07]} O-O {[%clk 00:36:32]} {[%emt 00:00:06]} 18. Kb1
{[%clk 00:31:07]} {[%emt 00:00:18]} Bb5 {[%clk 00:27:58]} {[%emt 00:08:44]} 19.
Qd2 {[%clk 00:29:35]} {[%emt 00:01:42]} Re8 {[%clk 00:26:54]} {[%emt 00:01:13]}
20. Rde1 {[%clk 00:27:33]} {[%emt 00:02:12]} Qc7 {[%clk 00:19:22]} {[%emt
00:07:43]} 21. Be4 {[%clk 00:25:59]} {[%emt 00:01:45]} Bh4 {[%clk 00:17:26]}
{[%emt 00:02:06]} 22. Re3 {[%clk 00:26:05]} {[%emt 00:00:02]} Qd8 {[%clk
00:14:00]} {[%emt 00:03:36]} 23. Bf5 {[%clk 00:24:13]} {[%emt 00:02:02]} Rxe3
{[%clk 00:12:24]} {[%emt 00:01:46]} 24. Qxe3 {[%clk 00:20:21]} {[%emt
00:04:02]} Bd7 {[%clk 00:11:23]} {[%emt 00:01:11]} 25. Bxd7 {[%clk 00:20:15]}
{[%emt 00:00:16]} Qxd7 {[%clk 00:11:32]} {[%emt 00:00:01]} 26. Qd3 {[%clk
00:15:32]} {[%emt 00:04:53]} Re8 {[%clk 00:10:53]} {[%emt 00:00:49]} 27. Rf1
{[%clk 00:14:14]} {[%emt 00:01:27]} Bf6 {[%clk 00:09:24]} {[%emt 00:01:40]} 28.
c3 {[%clk 00:11:33]} {[%emt 00:02:51]} Be5 {[%clk 00:09:05]} {[%emt 00:00:29]}
29. Bd2 {[%clk 00:08:49]} {[%emt 00:02:53]} b5 {[%clk 00:07:47]} {[%emt
00:01:29]} 30. Re1 {[%clk 00:08:31]} {[%emt 00:00:27]} Rc8 {[%clk 00:07:23]}
{[%emt 00:00:35]} 31. Rc1 {[%clk 00:05:17]} {[%emt 00:03:24]} Rc4 {[%clk
00:07:04]} {[%emt 00:00:29]} 32. b3 {[%clk 00:05:15]} {[%emt 00:00:13]} Rc8
{[%clk 00:06:59]} {[%emt 00:00:15]} 33. c4 {[%clk 00:05:22]} {[%emt 00:00:03]}
Re8 {[%clk 00:06:01]} {[%emt 00:01:07]} 34. cxb5 {[%clk 00:04:32]} {[%emt
00:01:00]} axb5 {[%clk 00:06:10]} {[%emt 00:00:01]} 35. Rc6 {[%clk 00:04:40]}
{[%emt 00:00:02]} Qa7 {[%clk 00:05:27]} {[%emt 00:00:53]} 36. Be3 {[%clk
00:04:34]} {[%emt 00:00:16]} Qa3 {[%clk 00:04:59]} {[%emt 00:00:38]} 37. Bc1
{[%clk 00:04:35]} {[%emt 00:00:09]} Qa7 {[%clk 00:04:26]} {[%emt 00:00:44]} 38.
Be3 {[%clk 00:04:33]} {[%emt 00:00:12]} Qa5 {[%clk 00:03:19]} {[%emt 00:01:16]}
39. Bd2 {[%clk 00:03:38]} {[%emt 00:01:05]} Qa7 {[%clk 00:02:46]} {[%emt
00:00:43]} 40. Be3 {[%clk 00:02:10]} {[%emt 00:01:38]} Qe7 {[%clk 00:02:55]} 41.
Bd4 {[%clk 00:00:57]} {[%emt 00:01:23]} Bxd4 {[%clk 00:02:51]} {[%emt
00:00:14]} 42. Qxd4 {[%clk 00:01:05]} {[%emt 00:00:01]} Qe1+ {[%clk 00:02:58]}
{[%emt 00:00:03]} 43. Rc1 {[%clk 00:01:03]} {[%emt 00:00:12]} Qe2 {[%clk
00:03:00]} {[%emt 00:00:09]} 44. Rc2 {[%clk 00:00:22]} {[%emt 00:00:51]} Qf1+
{[%clk 00:02:57]} {[%emt 00:00:13]} 45. Kb2 {[%clk 00:00:31]} {[%emt 00:00:01]}
Qxh3 {[%clk 00:02:56]} {[%emt 00:00:11]} 46. Qb4 {[%clk 00:00:19]} {[%emt
00:00:21]} Qd3 {[%clk 00:02:46]} {[%emt 00:00:21]} 47. Rd2 {[%clk 00:00:28]}
{[%emt 00:00:01]} Qe3 {[%clk 00:02:49]} {[%emt 00:00:07]} 48. Rd1 {[%clk
00:00:16]} {[%emt 00:00:22]} Rc8 {[%clk 00:02:35]} {[%emt 00:00:24]} 49. Qd4
{[%clk 00:00:15]} {[%emt 00:00:11]} Qe2+ {[%clk 00:02:37]} {[%emt 00:00:09]} 50.
Rd2 {[%clk 00:00:20]} {[%emt 00:00:05]} Qf3 {[%clk 00:02:07]} {[%emt 00:00:39]}
51. Rd3 {[%clk 00:00:27]} {[%emt 00:00:03]} Qe2+ {[%clk 00:02:04]} {[%emt
00:00:13]} 52. Rd2 {[%clk 00:00:36]} {[%emt 00:00:02]} Qe7 {[%clk 00:02:13]} 53.
Rd3 {[%clk 00:00:14]} {[%emt 00:00:32]} Qg5 {[%clk 00:01:26]} {[%emt 00:00:57]}
54. Rc3 {[%clk 00:00:13]} {[%emt 00:00:12]} Re8 {[%clk 00:01:32]} {[%emt
00:00:04]} 55. Rc2 {[%clk 00:00:15]} {[%emt 00:00:07]} Qe7 {[%clk 00:01:31]}
{[%emt 00:00:10]} 56. Rd2 {[%clk 00:00:16]} {[%emt 00:00:09]} Qb7 {[%clk
00:01:31]} {[%emt 00:00:12]} 57. Rc2 {[%clk 00:00:19]} {[%emt 00:00:07]} Qa6
{[%clk 00:01:25]} {[%emt 00:00:16]} 58. Rd2 {[%clk 00:00:13]} {[%emt 00:00:17]}
Qa5 {[%clk 00:01:28]} {[%emt 00:00:07]} 59. Rc2 {[%clk 00:00:12]} {[%emt
00:00:11]} b4 {[%clk 00:01:22]} {[%emt 00:00:15]} 60. Rd2 {[%clk 00:00:14]}
{[%emt 00:00:09]} Re5 {[%clk 00:01:15]} {[%emt 00:00:17]} 61. Kb1 {[%clk
00:00:15]} {[%emt 00:00:08]} Re1+ {[%clk 00:01:12]} {[%emt 00:00:13]} 62. Rd1
{[%clk 00:00:19]} {[%emt 00:00:06]} Qc5 {[%clk 00:00:35]} {[%emt 00:00:47]} 63.
Qd2 {[%clk 00:00:12]} {[%emt 00:00:17]} Rxd1+ {[%clk 00:00:33]} {[%emt
00:00:12]} 64. Qxd1 {[%clk 00:00:21]} g6 {[%clk 00:00:40]} {[%emt 00:00:03]} 65.
Qf3 {[%clk 00:00:16]} {[%emt 00:00:15]} Qd4 {[%clk 00:00:43]} {[%emt 00:00:07]}
66. Qg2 {[%clk 00:00:13]} {[%emt 00:00:13]} Kg7 {[%clk 00:00:38]} {[%emt
00:00:16]} 67. Qf3 {[%clk 00:00:20]} {[%emt 00:00:02]} Qd2 {[%clk 00:00:34]}
{[%emt 00:00:14]} 68. Qe4 {[%clk 00:00:16]} {[%emt 00:00:14]} h5 {[%clk
00:00:37]} {[%emt 00:00:08]} 69. gxh5 {[%clk 00:00:24]} {[%emt 00:00:02]} gxh5
{[%clk 00:00:46]} 70. Qf5 {[%clk 00:00:16]} {[%emt 00:00:16]} Qe1+ {[%clk
00:00:38]} {[%emt 00:00:19]} 71. Kc2 {[%clk 00:00:23]} {[%emt 00:00:02]} Qe2+
{[%clk 00:00:46]} {[%emt 00:00:03]} 72. Kb1 {[%clk 00:00:24]} {[%emt 00:00:07]}
Qd1+ {[%clk 00:00:47]} {[%emt 00:00:11]} 73. Kb2 {[%clk 00:00:32]} {[%emt
00:00:01]} Qd4+ {[%clk 00:00:56]} {[%emt 00:00:01]} 74. Kb1 {[%clk 00:00:29]}
{[%emt 00:00:11]} Qg4 {[%clk 00:01:03]} {[%emt 00:00:05]} 75. Qf2 {[%clk
00:00:13]} {[%emt 00:00:26]} h4 {[%clk 00:01:06]} {[%emt 00:00:08]} 76. Qh2
{[%clk 00:00:12]} {[%emt 00:00:11]} h3 {[%clk 00:00:54]} {[%emt 00:00:22]} 77.
Qb2+ {[%clk 00:00:11]} {[%emt 00:00:10]} Kh7 {[%clk 00:00:52]} {[%emt
00:00:12]} 78. Qf2 {[%clk 00:00:14]} {[%emt 00:00:06]} Qh5 {[%clk 00:00:47]}
{[%emt 00:00:16]} 79. Kb2 {[%clk 00:00:12]} {[%emt 00:00:12]} h2 {[%clk
00:00:46]} {[%emt 00:00:10]} 80. Qc2+ {[%clk 00:00:20]} {[%emt 00:00:02]} Kg7
{[%clk 00:00:51]} {[%emt 00:00:06]} 81. Qg2+ {[%clk 00:00:28]} {[%emt
00:00:02]} Kf8 {[%clk 00:01:00]} {[%emt 00:00:01]} 82. Qh1 {[%clk 00:00:37]}
{[%emt 00:00:01]} Qh3 {[%clk 00:00:51]} {[%emt 00:00:18]} 83. a4 {[%clk
00:00:23]} {[%emt 00:00:22]} bxa3+ {[%clk 00:00:51]} {[%emt 00:00:11]} 84. Kxa3
{[%clk 00:00:21]} {[%emt 00:00:13]} Qg3 {[%clk 00:00:56]} {[%emt 00:00:06]} 85.
Qc1 {[%clk 00:00:11]} {[%emt 00:00:19]} Qg1 {[%clk 00:00:59]} {[%emt 00:00:07]}
86. Qh6+ {[%clk 00:00:15]} {[%emt 00:00:07]} Kg8 {[%clk 00:01:03]} {[%emt
00:00:05]} 87. Qh4 {[%clk 00:00:12]} {[%emt 00:00:13]} h1=Q {[%clk 00:01:03]}
{[%emt 00:00:10]} 88. Qd8+ {[%clk 00:00:20]} {[%emt 00:00:01]} Kg7 {[%clk
00:01:12]} {[%emt 00:00:01]} 89. Qxd6 {[%clk 00:00:27]} {[%emt 00:00:03]} Qa7+
{[%clk 00:01:11]} {[%emt 00:00:11]} 90. Kb4 {[%clk 00:00:31]} {[%emt 00:00:06]}
Qe4+ {[%clk 00:01:16]} {[%emt 00:00:05]} 91. Kb5 {[%clk 00:00:40]} {[%emt
00:00:01]} Qb7+ {[%clk 00:01:22]} {[%emt 00:00:04]} 92. Ka5 {[%clk 00:00:44]}
{[%emt 00:00:06]} Qexd5+ {[%clk 00:01:24]} {[%emt 00:00:08]} 0-1

[Event "FIDE U16 Olympiad_boards_1-80"]
[Site "Eindhoven, Netherlands"]
[Date "2023.08.14"]
[Round "2.3"]
[White "Mamedov, Edgar"]
[Black "Harsh, Suresh"]
[Result "1/2-1/2"]
[TimeControl "2700+10"]
[WhiteElo "2091"]
[BlackElo "2158"]

1. d4 {[%clk 00:45:16]} {[%emt 00:00:03]} Nf6 {[%clk 00:45:17]} {[%emt
00:00:04]} 2. c4 {[%clk 00:45:19]} {[%emt 00:00:07]} e6 {[%clk 00:45:24]}
{[%emt 00:00:03]} 3. Nf3 {[%clk 00:45:15]} {[%emt 00:00:13]} Bb4+ {[%clk
00:45:31]} {[%emt 00:00:03]} 4. Bd2 {[%clk 00:45:17]} {[%emt 00:00:08]} a5
{[%clk 00:45:39]} {[%emt 00:00:02]} 5. a3 {[%clk 00:44:33]} {[%emt 00:00:54]}
Be7 {[%clk 00:43:48]} {[%emt 00:02:02]} 6. Nc3 {[%clk 00:44:35]} {[%emt
00:00:08]} d5 {[%clk 00:43:50]} {[%emt 00:00:07]} 7. Bf4 {[%clk 00:43:48]}
{[%emt 00:00:57]} O-O {[%clk 00:43:43]} {[%emt 00:00:18]} 8. e3 {[%clk
00:43:55]} {[%emt 00:00:03]} Na6 {[%clk 00:39:28]} {[%emt 00:04:25]} 9. Be2
{[%clk 00:38:19]} {[%emt 00:05:46]} dxc4 {[%clk 00:33:19]} {[%emt 00:06:20]} 10.
Bxc4 {[%clk 00:38:19]} {[%emt 00:00:09]} c5 {[%clk 00:33:23]} {[%emt 00:00:07]}
11. O-O {[%clk 00:34:56]} {[%emt 00:03:32]} Bd7 {[%clk 00:26:33]} {[%emt
00:07:01]} 12. d5 {[%clk 00:29:43]} {[%emt 00:05:23]} exd5 {[%clk 00:24:06]}
{[%emt 00:02:37]} 13. Nxd5 {[%clk 00:29:31]} {[%emt 00:00:21]} Nxd5 {[%clk
00:24:04]} {[%emt 00:00:12]} 14. Bxd5 {[%clk 00:29:28]} {[%emt 00:00:13]} Qc8
{[%clk 00:24:04]} {[%emt 00:00:09]} 15. Ne5 {[%clk 00:22:58]} {[%emt 00:06:40]}
Bf6 {[%clk 00:14:14]} {[%emt 00:10:00]} 16. Nc4 {[%clk 00:13:05]} {[%emt
00:10:03]} Bc6 {[%clk 00:09:22]} {[%emt 00:05:02]} 17. e4 {[%clk 00:11:23]}
{[%emt 00:01:52]} Bxd5 {[%clk 00:07:47]} {[%emt 00:01:45]} 18. Qxd5 {[%clk
00:08:40]} {[%emt 00:02:53]} Nc7 {[%clk 00:05:20]} {[%emt 00:02:37]} 19. Qd3
{[%clk 00:05:56]} {[%emt 00:02:54]} Ra6 {[%clk 00:04:36]} {[%emt 00:00:54]} 20.
Nd6 {[%clk 00:03:05]} {[%emt 00:03:00]} Qg4 {[%clk 00:03:56]} {[%emt 00:00:49]}
21. Qg3 {[%clk 00:01:58]} {[%emt 00:01:18]} Qxg3 {[%clk 00:04:03]} {[%emt
00:00:03]} 22. Bxg3 {[%clk 00:01:59]} {[%emt 00:00:09]} Bxb2 {[%clk 00:03:57]}
{[%emt 00:00:16]} 23. Rab1 {[%clk 00:01:51]} {[%emt 00:00:18]} Bxa3 {[%clk
00:02:24]} {[%emt 00:01:43]} 24. Nc4 {[%clk 00:01:21]} {[%emt 00:00:40]} Bb4
{[%clk 00:02:33]} {[%emt 00:00:01]} 25. Bxc7 {[%clk 00:01:27]} {[%emt
00:00:03]} b5 {[%clk 00:02:02]} {[%emt 00:00:41]} 26. Nd6 {[%clk 00:00:42]}
{[%emt 00:00:55]} Ra7 {[%clk 00:02:09]} {[%emt 00:00:03]} 27. Bb6 {[%clk
00:00:34]} {[%emt 00:00:18]} Ra6 {[%clk 00:02:15]} {[%emt 00:00:04]} 28. Bc7
{[%clk 00:00:38]} {[%emt 00:00:06]} Ra7 {[%clk 00:02:24]} {[%emt 00:00:01]} 29.
Bb6 {[%clk 00:00:27]} {[%emt 00:00:21]} Ra6 {[%clk 00:01:37]} {[%emt 00:00:57]}
30. Bc7 {[%clk 00:00:33]} {[%emt 00:00:03]} 1/2-1/2